bitfinex/quotes_ETHUSD_20240711
["timestamp","ask_amount","ask_price","bid_price","bid_amount"]
[1720664281643,1.11479333,3109.6,3107.8,2.682]
[1720664281827,1.19521411,3109.5,3107.9,0.2682]
[1720664282030,1.11479333,3109.4,3107.9,0.2682]
[1720664282340,0.08041958,3109.3,3107.9,0.2682]
[1720664283121,1.19976635,3109.9,3107.9,3.33253561]
[1720664283342,1.11480942,3109.8,3107.9,3.33253561]
[1720664283543,1.3543081,3109.7,3108.0,0.60145356]
[1720664283743,1.11480942,3109.6,3108.2,2.682]
[1720664283956,1.11480942,3109.5,3108.2,2.682]
[1720664284251,1.19976635,3109.9,3108.3,0.06432882]
[1720664284451,1.11461802,3109.8,3108.7,2.682]
[1720664284663,0.85192657,3109.9,3108.8,2.6213]
[1720664284820,1.1145234,3109.8,3108.8,2.6213]
[1720664285025,0.85192657,3109.9,3108.8,2.6213]
[1720664285356,1.1145585,3109.8,3108.8,2.68561519]
[1720664285654,7.77526572,3110.1,3108.9,0.53676152]
[1720664285822,1.11454418,3110.0,3108.9,0.53676152]
[1720664286020,1.11454418,3109.9,3109.0,0.06431515]
[1720664286256,7.44,3110.5,3109.1,5.21831516]
[1720664286460,1.11434462,3110.4,3109.2,2.472]
[1720664286624,1.11434462,3110.3,3109.4,2.472]
[1720664286821,7.44,3110.5,3109.4,2.472]
[1720664287028,7.44,3110.5,3109.5,2.74630273]
[1720664287240,7.44,3110.5,3109.6,2.472]
[1720664287435,7.44,3110.9,3109.9,2.682]
[1720664287634,7.44,3110.9,3110.0,0.2682]
[1720664287835,1.11414657,3110.8,3110.0,0.2682]
[1720664288063,7.44,3110.9,3110.0,0.2682]
[1720664288250,7.44,3110.9,3109.6,2.79358476]
[1720664288429,1.19460105,3110.8,3109.6,2.79358476]
[1720664288777,1.11423035,3110.7,3109.6,2.79358476]
[1720664288984,1.19461191,3110.8,3109.6,2.79358476]
[1720664289287,1.11423035,3110.7,3109.9,2.682]
[1720664289466,7.44,3110.9,3109.9,2.682]
[1720664290652,0.08037101,3110.8,3109.6,2.79358476]
[1720664290957,7.44,3111.3,3109.6,0.32158476]
[1720664290958,4.59266122,3110.7,3109.6,0.32158476]
[1720664291166,3.398,3110.5,3109.6,0.32158476]
[1720664291335,1.664274,3110.4,3109.6,0.32158476]
[1720664291535,1.114274,3110.3,3109.6,0.32158476]
[1720664291737,0.0803901,3110.7,3109.6,0.32158476]
[1720664291972,1.46226317,3110.6,3109.6,0.32158476]
[1720664292172,1.19481764,3110.5,3109.6,0.32158476]
[1720664292337,1.11442416,3110.4,3109.6,0.32158476]
[1720664292734,1.11443056,3110.3,3109.6,0.32158476]
[1720664292967,1.41576922,3110.9,3109.6,0.32158476]
[1720664293186,2.80596235,3110.8,3109.6,0.32158476]
[1720664293387,1.19478538,3110.7,3109.6,0.32158476]
[1720664293686,3.398,3110.5,3109.6,0.32158476]
[1720664293850,1.74478524,3110.4,3109.6,0.32158476]
[1720664294055,4.51238543,3110.3,3109.6,0.32158476]
[1720664294357,2.2590692,3110.2,3109.6,0.32158476]
[1720664294681,4.51238543,3110.1,3109.6,0.32158476]
[1720664294972,4.51238543,3110.1,3109.1,2.4172]
[1720664294973,3.398,3109.9,3108.0,2.293]
[1720664295279,3.398,3109.7,3108.0,2.293]
[1720664295445,3.398,3109.5,3108.0,2.293]
[1720664295639,3.398,3109.3,3108.0,2.293]
[1720664295836,1.11490615,3109.2,3108.0,2.293]
[1720664296036,1.57748149,3109.6,3108.0,2.293]
[1720664296037,1.11490615,3109.1,3108.0,2.35734635]
[1720664296243,3.398,3109.5,3108.0,2.293]
[1720664296436,1.61240616,3109.4,3108.0,2.293]
[1720664296667,1.11485801,3109.3,3108.1,0.06433994]
[1720664296940,1.11485801,3109.3,3108.0,2.293]
[1720664296941,1.11480849,3109.2,3108.0,2.293]
[1720664297163,3.398,3110.0,3108.0,2.293]
[1720664297164,1.11480849,3109.1,3108.0,2.293]
[1720664297366,0.0804177,3109.9,3108.0,2.293]
[1720664297367,1.11480849,3109.8,3108.0,2.293]
[1720664297574,0.08041766,3109.7,3108.1,0.2293]
[1720664297883,4.51280849,3109.6,3108.0,2.293]
[1720664298035,0.08041766,3109.7,3108.0,2.293]
[1720664298036,1.74523627,3109.5,3108.0,2.293]
[1720664298241,1.11480849,3109.4,3108.0,2.293]
[1720664298866,1.11480849,3109.4,3108.1,0.06434088]
[1720664299068,1.11483755,3109.3,3108.1,0.06434088]
[1720664299244,3.0,3110.1,3108.0,2.293]
[1720664299245,1.11477136,3109.2,3108.0,2.293]
[1720664299449,1.11477136,3109.1,3108.0,2.293]
[1720664299662,4.51277136,3109.6,3108.0,2.293]
[1720664299863,1.57417542,3109.5,3108.1,0.06433904]
[1720664300070,1.1148559,3109.4,3108.1,0.06433904]
[1720664300370,1.1148559,3109.3,3108.0,5.03932939]
[1720664300539,0.08041174,3110.0,3108.0,4.975]
[1720664300735,3.398,3109.8,3108.0,4.975]
[1720664300973,1.19521679,3109.7,3108.0,4.975]
[1720664301163,1.57411859,3109.6,3108.1,0.4975]
[1720664301361,3.398,3110.0,3108.1,0.56183127]
[1720664301362,1.11479691,3109.5,3108.1,0.56183127]
[1720664301563,3.398,3110.0,3108.1,3.56183127]
[1720664301873,1.11471357,3109.9,3108.2,2.4849]
[1720664302100,0.0804152,3110.1,3108.2,2.4849]
[1720664302101,1.11471357,3109.8,3108.4,2.4849]
[1720664302377,0.08041205,3109.7,3108.4,2.4849]
[1720664302551,1.11475599,3109.7,3108.4,2.4849]
[1720664302743,0.3218,3110.5,3108.4,2.4849]
[1720664302744,1.11475599,3109.6,3108.5,0.24849]
[1720664302942,1.11475599,3110.2,3108.5,0.24849]
[1720664303144,1.11475599,3110.1,3108.6,2.285]
[1720664303344,1.11475599,3110.0,3108.6,2.285]
[1720664303654,3.47839848,3110.6,3108.7,0.31766698]
[1720664303849,1.11456735,3110.5,3108.7,0.31766698]
[1720664304056,1.11456735,3110.4,3108.7,0.31766698]
[1720664304262,1.11456735,3110.3,3108.7,0.31766698]
[1720664304467,1.11456735,3110.2,3108.9,2.2888]
[1720664304677,10.42538778,3111.0,3109.1,2.2888]
[1720664304678,1.11456735,3110.1,3109.1,2.2888]
[1720664304845,0.33538484,3110.9,3109.1,2.2888]
[1720664305046,1.11432795,3110.8,3109.3,2.2888]
[1720664305246,10.0,3111.0,3109.4,0.06430655]
[1720664305247,1.11432795,3110.7,3109.4,0.06430655]
[1720664305443,1.11432795,3110.9,3109.4,0.06430655]
[1720664305648,1.8554328,3110.9,3109.5,0.23531066]
[1720664305847,1.11424791,3110.8,3109.5,0.23531066]
[1720664306047,1.11424791,3110.7,3109.5,0.23531066]
[1720664306345,1.8554328,3110.9,3109.6,2.2888]
[1720664306572,1.11419113,3110.8,3109.6,2.2888]
[1720664306743,1.11419113,3110.7,3109.7,0.25241107]
[1720664307146,10.0,3111.0,3109.8,2.48499774]
[1720664307352,10.0,3111.0,3110.0,2.682]
[1720664308071,10.0,3111.0,3110.0,2.74628973]
[1720664308381,10.0,3111.0,3110.1,2.4207]
[1720664308586,10.0,3111.0,3110.2,0.58098865]
[1720664308886,10.0,3111.0,3110.3,0.06428973]
[1720664309082,10.0,3111.0,3110.4,2.74628863]
[1720664309484,9.32848679,3111.0,3110.6,2.4207]
[1720664319716,9.32848679,3111.0,3110.7,2.74628284]
[1720664319917,9.32848679,3111.0,3110.8,5.86867833]
[1720664320217,9.32848679,3111.0,3110.8,5.80439828]
[1720664320519,9.32848679,3111.0,3110.8,2.80439828]
[1720664320814,9.32848679,3111.0,3110.8,2.2877]
[1720664321391,9.32848679,3111.0,3110.0,2.2985]
[1720664322713,9.32848679,3111.0,3110.1,2.682]
[1720664323436,9.32848679,3111.0,3110.2,3.0]
[1720664323713,9.32848679,3111.0,3110.3,2.2985]
[1720664323916,9.32848679,3111.0,3110.4,0.52985]
[1720664324112,9.32848679,3111.0,3110.3,2.2985]
[1720664325440,0.33528922,3110.9,3110.3,2.2985]
[1720664327848,0.33528922,3110.9,3110.3,2.36278478]
[1720664328152,0.33528922,3110.9,3110.5,2.682]
[1720664328327,0.33528922,3110.9,3110.6,0.2682]
[1720664329547,0.33528922,3110.9,3110.3,2.2985]
[1720664329750,0.33528922,3110.9,3110.4,3.0]
[1720664329923,0.33528922,3110.9,3110.3,2.2985]
[1720664331630,0.33528922,3110.9,3110.3,2.36278474]
[1720664331953,0.33528922,3110.9,3110.3,5.57788474]
[1720664332120,0.33528922,3110.9,3110.4,4.44750547]
[1720664332330,0.33528922,3110.9,3110.6,8.25952]
[1720664332560,0.33528922,3110.9,3110.7,3.0]
[1720664332726,0.33528922,3110.9,3110.8,2.004]
[1720664335633,1e-08,3110.9,3110.8,2.004]
[1720664335850,1e-08,3110.9,3110.8,3.12643901]
[1720664336058,1e-08,3110.9,3110.8,6.12643901]
[1720664337170,1e-08,3110.9,3110.8,6.06216]
[1720664338442,1e-08,3110.9,3110.8,9.82676]
[1720664339530,1e-08,3110.9,3110.8,15.37496]
[1720664339756,9.32848679,3111.0,3110.9,8.7626]
[1720664339757,2.26735319,3111.0,3110.9,8.7626]
[1720664339943,0.08033906,3112.9,3111.4,2.3336]
[1720664340143,0.33529627,3112.2,3111.7,2.004]
[1720664340465,2.3064,3113.6,3112.1,2.004]
[1720664340640,2.3064,3113.6,3112.2,2.46024533]
[1720664340641,0.335284,3112.7,3112.2,2.46024533]
[1720664340964,0.08030674,3113.5,3111.8,3.0]
[1720664341159,0.33528878,3112.9,3111.5,4.46425338]
[1720664341365,1.19373995,3112.8,3111.5,4.4]
[1720664341564,1.1135132,3112.7,3111.6,3.0]
[1720664341863,1.19384,3112.6,3111.1,2.004]
[1720664342061,1.4584372,3112.5,3111.1,2.004]
[1720664342273,1.19385086,3112.4,3111.1,2.004]
[1720664342474,1.1135132,3112.3,3111.1,2.004]
[1720664342856,1.1135132,3112.4,3111.1,2.004]
[1720664343269,0.08033767,3112.3,3111.1,2.004]
[1720664343488,1.1135132,3112.2,3111.1,2.44528]
[1720664343652,0.344924,3112.5,3111.1,2.44528]
[1720664343653,1.1135132,3112.4,3111.1,2.44528]
[1720664343854,1.1135132,3112.4,3110.7,2.004]
[1720664343855,0.08033636,3112.3,3110.7,2.004]
[1720664344071,2.2521,3112.1,3110.4,2.3139]
[1720664344265,1.19404131,3112.0,3110.4,2.3139]
[1720664344468,1.11369089,3111.9,3110.4,2.3139]
[1720664344676,0.08035042,3111.8,3110.4,2.3139]
[1720664344976,1.7440413,3111.7,3109.9,2.3139]
[1720664345179,3.58089089,3111.6,3109.9,2.3139]
[1720664345346,1.19405581,3111.5,3109.9,2.3139]
[1720664345546,1.11369089,3111.4,3109.9,2.3139]
[1720664345751,1.11369089,3111.4,3110.0,2.90439]
[1720664345968,1.11369089,3111.3,3110.1,0.06428632]
[1720664346280,9.9133,3112.1,3110.4,2.673]
[1720664346483,2.33001296,3112.0,3110.4,2.673]
[1720664346688,2.33001296,3112.0,3110.0,0.23139]
[1720664346689,1.78006306,3111.9,3110.0,2.90439]
[1720664346903,2.5711044,3111.8,3110.1,3.52825717]
[1720664347113,1.11390333,3111.7,3110.1,3.59254592]
[1720664347310,1.11393918,3111.7,3110.1,3.59254592]
[1720664347488,1.11393918,3111.6,3110.1,3.59254592]
[1720664347696,1.11393918,3111.5,3110.1,3.59254592]
[1720664347863,1.11393918,3111.7,3110.2,0.64969359]
[1720664348373,0.66616716,3111.6,3110.3,0.06428567]
[1720664348573,1.11393918,3111.5,3110.3,0.06428567]
[1720664348995,1.11393918,3111.7,3110.3,0.06428567]
[1720664349197,9.9133,3112.1,3110.5,0.66700338]
[1720664349363,2.77116185,3112.0,3110.6,0.61382194]
[1720664349693,1.78006522,3111.9,3110.7,0.06427621]
[1720664349893,1.78006522,3111.8,3110.7,0.06427621]
[1720664350098,1.11392979,3111.7,3110.7,0.06427621]
[1720664350397,0.08034667,3112.3,3110.8,2.2723]
[1720664350585,1.77977296,3112.2,3110.8,5.2723]
[1720664350793,1.77977296,3112.1,3110.8,5.2723]
[1720664351125,1.86011658,3112.0,3110.8,3.0]
[1720664351267,4.27867296,3111.9,3110.4,2.93930338]
[1720664351567,2.29603016,3111.8,3110.5,3.0]
[1720664351762,1.86012882,3111.7,3110.5,3.0]
[1720664351981,1.77977296,3111.6,3110.5,3.0]
[1720664352185,1.86012849,3111.5,3110.5,3.0]
[1720664352464,1.77977296,3111.4,3110.5,3.0]
[1720664352673,1.77977296,3111.3,3110.6,0.57312502]
[1720664352972,1.78013583,3111.2,3110.6,0.57312502]
[1720664353170,1.78015441,3111.1,3110.6,0.57312502]
[1720664353374,7.52035553,3111.7,3110.5,3.0]
[1720664353375,7.44,3111.7,3110.5,3.0]
[1720664353581,1.7801582,3111.6,3110.5,3.0]
[1720664353781,1.78015579,3111.5,3110.5,3.0]
[1720664354001,1.78015579,3111.4,3110.5,3.0]
[1720664354181,1.78015579,3111.3,3110.6,0.57312502]
[1720664354366,7.44,3111.7,3110.6,0.57312502]
[1720664354567,1.7800224,3111.6,3110.6,0.57312502]
[1720664354793,1.7800224,3111.5,3110.6,0.57312502]
[1720664355095,1.7800224,3111.4,3110.6,0.57312502]
[1720664355395,1.7800224,3111.3,3110.6,0.57312502]
[1720664355585,7.44,3111.7,3110.6,0.57312502]
[1720664355586,7.44,3111.7,3110.7,0.3573125]
[1720664355786,1.77990935,3111.6,3110.7,0.3573125]
[1720664356095,7.44,3112.3,3110.8,2.8622891]
[1720664356297,1.77974248,3112.2,3110.9,3.0]
[1720664356506,1.77974248,3112.1,3111.0,0.30642743]
[1720664356709,1.77974248,3112.0,3110.8,0.06427202]
[1720664356884,1.11376386,3112.0,3110.8,0.06427202]
[1720664357080,1.77973079,3111.9,3110.8,0.06427202]
[1720664357293,1.77973079,3111.8,3110.7,0.3573125]
[1720664357474,1.77973079,3111.7,3110.7,0.3573125]
[1720664357671,1.77973079,3111.6,3110.7,0.3573125]
[1720664357868,1.77973079,3111.5,3110.7,0.4215865]
[1720664358207,0.33528284,3112.0,3110.8,7.82056419]
[1720664358497,0.33528284,3112.0,3110.9,7.67085277]
[1720664358689,0.33528284,3112.0,3111.0,3.52916139]
[1720664358878,0.33528284,3112.0,3111.1,5.79789238]
[1720664359080,7.44,3112.3,3111.2,4.18342219]
[1720664359290,1.11355596,3112.2,3111.3,0.06426479]
[1720664359499,7.44,3112.8,3111.3,0.06426479]
[1720664359677,0.33530091,3112.5,3111.3,0.17427306]
[1720664359878,1.77927574,3112.4,3111.2,0.06426151]
[1720664360175,0.33530091,3112.5,3111.2,0.06426151]
[1720664360382,1.77936646,3112.4,3111.2,0.06426151]
[1720664360576,0.33530091,3112.5,3111.3,0.06426156]
[1720664360577,1.77936646,3112.3,3111.3,0.06426156]
[1720664360789,1.11357053,3112.2,3111.3,0.06426156]
[1720664360969,0.33530091,3112.5,3111.4,0.06426231]
[1720664361168,2.3478,3113.4,3111.8,2.673]
[1720664361479,0.33529928,3113.1,3111.9,0.0642457]
[1720664361679,1.85924111,3113.0,3111.6,2.284]
[1720664361903,1.77893355,3112.9,3111.6,5.34825288]
[1720664362197,0.33529928,3113.1,3111.6,5.34825288]
[1720664362198,1.77895754,3112.8,3111.6,5.34825288]
[1720664362419,1.11331513,3112.7,3111.7,0.56760801]
[1720664362617,0.26624354,3112.8,3111.7,3.0]
[1720664362817,1.85951247,3112.7,3111.1,4.09506554]
[1720664363022,2.2954,3112.5,3111.1,2.4168]
[1720664363219,2.2954,3112.5,3110.6,3.34000338]
[1720664363220,1.85953085,3112.4,3110.7,2.4168]
[1720664363519,2.32967899,3112.3,3110.7,2.4168]
[1720664363718,2.32967899,3112.3,3110.8,0.06427568]
[1720664363719,1.77967899,3112.2,3110.8,0.06427568]
[1720664363924,0.2329679,3112.1,3110.9,0.41597073]
[1720664364118,1.1136449,3112.4,3111.0,2.73726925]
[1720664364329,1.1136449,3112.3,3111.0,2.73726925]
[1720664364489,1.1136449,3112.2,3111.1,3.0]
[1720664364827,2.2954,3112.5,3111.1,3.0]
[1720664365024,0.33529928,3113.1,3111.2,0.06426333]
[1720664365025,1.11359787,3112.4,3111.2,0.06426333]
[1720664365318,2.67739928,3113.1,3111.4,2.3655]
[1720664365519,2.32907208,3113.0,3111.5,0.0642587]
[1720664365718,1.77907208,3112.9,3111.5,0.0642587]
[1720664365918,1.77911387,3112.8,3111.5,0.0642587]
[1720664366151,1.77911387,3112.7,3111.5,0.0642587]
[1720664366325,2.67739928,3113.1,3111.6,0.81027587]
[1720664366492,1.77905226,3113.0,3111.7,0.06425514]
[1720664366694,1.11340899,3113.0,3111.7,0.06425514]
[1720664366892,1.11337652,3112.9,3111.7,0.06425514]
[1720664367095,0.33529928,3113.1,3111.8,0.0642544]
[1720664367338,1.66334072,3113.0,3111.8,0.0642544]
[1720664367543,0.749864,3113.0,3111.8,0.0642544]
[1720664367698,0.55,3113.0,3111.8,0.0642544]
[1720664368722,0.33529928,3113.1,3111.9,2.4188]
[1720664368926,0.33529928,3113.1,3112.0,0.06424408]
[1720664369109,0.33529928,3113.1,3111.9,5.4188]
[1720664369292,0.33529928,3113.1,3111.9,2.4188]
[1720664369593,1.11338442,3113.0,3111.9,2.4188]
[1720664369790,0.33529928,3113.1,3112.0,0.06424906]
[1720664369991,0.33529928,3113.1,3112.0,3.06424906]
[1720664370242,0.33529928,3113.1,3112.0,3.0]
[1720664371220,0.55,3113.0,3112.0,3.0]
[1720664372347,0.6303175,3113.0,3111.4,2.673]
[1720664372559,0.6303175,3113.0,3111.3,0.30642633]
[1720664372560,4.10378055,3112.9,3111.3,2.61562633]
[1720664372720,1.85960633,3112.8,3111.4,0.26156263]
[1720664372920,2.40960633,3112.7,3111.4,0.26156263]
[1720664373119,1.77928055,3112.6,3111.4,0.26156263]
[1720664373353,0.55,3112.7,3111.4,0.26156263]
[1720664373557,0.55,3112.8,3111.4,0.26156263]
[1720664373761,1.77925086,3112.7,3111.4,0.26156263]
[1720664373935,2.32931317,3112.6,3111.4,0.26156263]
[1720664374138,1.11359872,3112.5,3111.4,0.26156263]
[1720664374376,0.55,3112.6,3111.4,0.26156263]
[1720664374525,0.55,3112.6,3111.4,3.26156263]
[1720664374934,1.11358814,3112.5,3111.4,3.26156263]
[1720664375135,0.16635881,3112.4,3111.4,3.26156263]
[1720664375364,0.55,3112.6,3111.4,3.26156263]
[1720664375535,1.11359196,3112.5,3111.4,3.26156263]
[1720664375736,0.55,3112.6,3111.4,3.26156263]
[1720664375963,1.11358449,3112.5,3111.4,3.26156263]
[1720664376172,0.55,3112.6,3111.4,3.26156263]
[1720664376342,1.11359029,3112.5,3111.4,3.26156263]
[1720664376691,0.16635903,3112.4,3111.3,2.3092]
[1720664376997,0.16635903,3112.4,3110.7,2.2537]
[1720664376998,2.32957045,3112.3,3110.7,2.2537]
[1720664377291,2.32957045,3112.3,3110.2,0.6676249]
[1720664377292,2.3487,3112.1,3110.2,2.2537]
[1720664377441,2.28078793,3112.0,3110.3,0.49267]
[1720664377779,1.77957045,3111.9,3110.3,0.49267]
[1720664377953,2.32957045,3111.8,3110.3,0.49267]
[1720664378142,1.77957045,3111.7,3110.3,0.49267]
[1720664378342,1.11367541,3111.6,3110.5,2.673]
[1720664378642,0.55,3111.8,3110.6,3.2673]
[1720664378841,1.11386172,3111.7,3110.6,3.2673]
[1720664379049,0.55,3112.0,3110.6,3.2673]
[1720664379269,1.77994371,3111.9,3110.6,3.33157824]
[1720664379469,0.55,3112.0,3110.7,2.2537]
[1720664379777,0.799,3111.9,3110.7,2.2537]
[1720664379940,2.41030714,3111.8,3110.7,2.2537]
[1720664380139,0.08035227,3111.7,3110.7,2.2537]
[1720664380341,0.08035227,3111.7,3110.3,0.49267]
[1720664380342,1.78003313,3111.6,3110.4,3.0]
[1720664380539,0.08035227,3111.7,3110.3,0.49267]
[1720664380540,1.66389731,3111.5,3110.3,0.49267]
[1720664380745,0.55,3111.5,3110.4,0.574637]
[1720664380944,0.08035227,3111.7,3110.4,0.574637]
[1720664381187,2.33012808,3111.6,3110.4,0.574637]
[1720664381356,1.11396211,3111.5,3110.4,0.574637]
[1720664382492,0.55,3111.6,3110.4,0.574637]
[1720664382657,1.11396517,3111.5,3110.7,2.673]
[1720664382975,7.77529733,3112.4,3110.8,3.3315715]
[1720664383175,0.33529733,3112.4,3110.8,3.3315715]
[1720664383388,1.77951495,3112.3,3110.8,3.3315715]
[1720664383548,1.11362992,3112.2,3110.8,3.3315715]
[1720664383749,1.11362992,3112.3,3110.9,0.60045715]
[1720664383951,1.11362992,3112.2,3110.9,0.60045715]
[1720664384268,0.33529733,3112.4,3110.9,0.60045715]
[1720664384471,2.32963039,3112.3,3110.9,0.60045715]
[1720664384669,1.11370623,3112.2,3110.9,0.60045715]
[1720664384872,1.11370623,3112.2,3111.1,2.4473]
[1720664385049,1.11360197,3112.3,3111.2,0.06426492]
[1720664385252,7.44,3113.0,3111.2,0.06426492]
[1720664385547,0.33526277,3112.8,3111.2,3.06426492]
[1720664385753,1.11347333,3112.7,3111.2,3.06426492]
[1720664385974,1.11347333,3112.7,3111.3,0.81845649]
[1720664386176,1.11347333,3112.7,3111.4,0.06425877]
[1720664386681,0.33526277,3112.8,3111.3,0.88271526]
[1720664386682,1.11350134,3112.6,3111.3,0.88271526]
[1720664386850,1.11350134,3112.5,3111.3,0.88271526]
[1720664387055,0.33526277,3112.8,3111.3,0.88271526]
[1720664387056,1.11350134,3112.7,3111.3,0.88271526]
[1720664387408,1.11350134,3112.7,3111.4,0.38827153]
[1720664387694,0.66582109,3112.6,3111.4,0.38827153]
[1720664387878,1.66350134,3112.5,3111.4,0.38827153]
[1720664388085,1.11350134,3112.4,3111.4,0.38827153]
[1720664389810,0.6303312,3112.5,3111.4,0.38827153]
[1720664389963,1.11360975,3112.3,3111.4,0.38827153]
[1720664390164,0.55,3112.5,3111.4,0.38827153]
[1720664390464,0.33526277,3112.8,3111.4,0.38827153]
[1720664390465,1.11359151,3112.4,3111.4,0.38827153]
[1720664390780,0.55,3112.7,3111.4,0.38827153]
[1720664390983,1.77942327,3112.6,3111.4,0.38827153]
[1720664391292,1.90457518,3112.5,3111.4,0.38827153]
[1720664391468,1.66359974,3112.4,3111.4,0.38827153]
[1720664391670,1.11359974,3112.3,3111.4,0.38827153]
[1720664391872,1.11359974,3112.6,3111.4,0.38827153]
[1720664392075,2.32942363,3112.5,3111.4,0.38827153]
[1720664392274,1.1135992,3112.4,3111.4,0.38827153]
[1720664393194,0.55,3112.5,3111.4,0.38827153]
[1720664393398,1.11358689,3112.4,3111.4,0.45253232]
[1720664393566,0.55,3112.7,3111.5,2.3432]
[1720664393897,0.55,3112.7,3111.6,0.34383193]
[1720664394063,0.55,3112.7,3111.6,0.27957323]
[1720664394269,1.11348488,3112.6,3111.6,3.27957323]
[1720664394592,1.11348488,3112.5,3111.6,3.27957323]
[1720664394794,1.11348488,3112.6,3111.6,3.27957323]
[1720664395000,1.66355355,3112.5,3111.6,3.27957323]
[1720664395202,1.11355355,3112.4,3111.6,3.27957323]
[1720664396318,0.55,3112.5,3111.6,3.27957323]
[1720664396668,1.11356337,3112.4,3111.6,3.27957323]
[1720664396875,0.55,3112.7,3111.6,3.27957323]
[1720664397080,1.11352179,3112.6,3111.7,0.56227732]
[1720664397280,1.66352179,3112.5,3111.7,0.56227732]
[1720664397598,0.55,3112.7,3111.7,0.56227732]
[1720664397790,1.77932334,3112.6,3111.7,0.56227732]
[1720664397991,1.66354896,3112.5,3111.7,0.56227732]
[1720664398192,1.11354896,3112.4,3111.8,0.38418506]
[1720664398389,0.55,3112.5,3111.8,0.38418506]
[1720664398699,0.55,3112.7,3111.8,0.38418506]
[1720664398873,1.77928372,3112.6,3111.7,0.56227732]
[1720664399071,1.74385545,3112.5,3111.7,0.56227732]
[1720664399274,1.1135267,3112.4,3111.7,0.56227732]
[1720664399908,0.55,3112.5,3111.7,0.56227732]
[1720664400112,1.11360075,3112.3,3111.7,0.56227732]
[1720664400267,0.55,3112.7,3111.7,0.56227732]
[1720664400473,1.77939715,3112.6,3111.1,2.3376]
[1720664400674,1.85974204,3112.5,3111.1,2.3376]
[1720664400874,1.77939715,3112.4,3111.1,2.3376]
[1720664401080,0.33532994,3112.6,3111.1,2.3376]
[1720664401081,2.32939715,3112.3,3111.1,2.3376]
[1720664401306,1.11358631,3112.2,3111.2,0.23376]
[1720664401710,1.11358631,3113.1,3111.2,0.23376]
[1720664402003,2.42122922,3113.2,3111.1,2.3376]
[1720664402004,4.59191553,3113.0,3111.1,2.3376]
[1720664402208,1.11358631,3112.9,3111.1,2.3376]
[1720664402377,0.08033757,3112.8,3111.1,2.3376]
[1720664402577,0.0803367,3112.7,3111.1,2.3376]
[1720664402808,6.79406105,3112.6,3111.1,2.3376]
[1720664402996,3.398,3112.4,3110.7,7.4]
[1720664403311,7.59211589,3112.3,3110.6,2.4119]
[1720664403486,5.14211764,3112.2,3110.6,2.4119]
[1720664403806,4.11376105,3112.1,3110.6,2.4119]
[1720664404016,1.7441177,3112.0,3110.6,2.4119]
[1720664404181,2.4859,3111.8,3110.6,2.4119]
[1720664404376,1.66376105,3111.7,3110.6,2.4119]
[1720664404581,1.11376105,3111.6,3110.7,0.06428213]
[1720664405072,3.0,3112.2,3110.7,0.06428213]
[1720664405073,1.11376105,3111.8,3110.7,0.06428213]
[1720664405278,1.19410667,3112.1,3110.6,2.4119]
[1720664405478,2.08329239,3112.0,3110.6,2.4119]
[1720664405677,1.19423621,3111.9,3110.6,2.4119]
[1720664405909,1.66388172,3111.8,3110.6,2.4119]
[1720664406087,0.96941067,3112.0,3110.6,2.4119]
[1720664406088,1.11388172,3111.7,3110.6,2.4119]
[1720664406395,1.11388172,3111.9,3110.6,2.4119]
[1720664406587,0.76636431,3111.8,3110.6,2.65309]
[1720664406782,1.11388172,3111.7,3110.6,2.65309]
[1720664408120,1.11388172,3111.7,3110.6,2.71737048]
[1720664408780,1.11389925,3111.6,3110.6,2.65309]
[1720664408980,1.11389925,3111.5,3110.6,2.65309]
[1720664409180,1.11389925,3111.7,3110.7,0.265309]
[1720664409401,1.11389925,3111.6,3110.7,0.265309]
[1720664409612,1.11389925,3111.5,3110.7,0.265309]
[1720664409916,1.11389925,3111.4,3110.7,0.265309]
[1720664410212,0.88529465,3111.8,3110.7,0.265309]
[1720664410399,1.11393466,3111.7,3110.7,0.265309]
[1720664410721,1.11393466,3111.6,3110.8,0.2677209]
[1720664410897,1.11393466,3111.5,3110.8,0.2677209]
[1720664411097,0.88529465,3111.8,3110.8,0.2677209]
[1720664411275,1.11389232,3111.7,3110.8,0.2677209]
[1720664411477,1.11389232,3111.6,3110.8,0.2677209]
[1720664411687,1.11389232,3111.7,3110.8,0.2677209]
[1720664411895,1.11389232,3111.7,3110.9,0.06428048]
[1720664412089,1.11384464,3111.6,3110.9,0.39748062]
[1720664412426,0.33529465,3111.8,3110.9,0.39748062]
[1720664412587,1.11384029,3111.7,3110.9,0.39748062]
[1720664412783,0.33529465,3111.8,3110.9,0.39748062]
[1720664412784,1.11384029,3111.6,3110.9,0.39748062]
[1720664413017,1.11384029,3111.5,3110.9,0.39748062]
[1720664413318,0.33529465,3111.8,3110.9,0.39748062]
[1720664413513,1.11384346,3111.7,3110.9,0.39748062]
[1720664413719,1.11384346,3111.6,3110.9,0.33320014]
[1720664413921,1.11384346,3111.5,3110.9,0.33320014]
[1720664414216,1.11384346,3111.7,3110.9,0.39747629]
[1720664414418,0.33529465,3111.8,3110.9,0.39747629]
[1720664414419,1.11384596,3111.6,3110.9,0.39747629]
[1720664414596,0.33529465,3111.8,3110.9,0.39747629]
[1720664414915,1.11384364,3111.7,3110.9,0.39747629]
[1720664415117,1.11384364,3111.6,3110.9,0.39747629]
[1720664415527,0.33529465,3111.8,3110.9,0.39747629]
[1720664415817,1.1138505,3111.7,3110.9,0.33320014]
[1720664416389,1.1138505,3111.7,3111.0,0.0642725]
[1720664416593,7.44,3112.3,3111.0,0.0642725]
[1720664416792,2.74308912,3112.2,3111.0,0.0642725]
[1720664416988,1.11377193,3112.1,3111.0,0.0642725]
[1720664417321,0.55,3112.0,3110.9,0.33320014]
[1720664417525,1.11377193,3111.9,3111.0,0.06427613]
[1720664418224,1.11377193,3111.9,3111.1,2.4975]
[1720664418444,7.44,3112.3,3111.3,2.005]
[1720664418592,7.44,3113.0,3111.4,2.301]
[1720664418896,14.8884,3113.4,3111.5,0.06425647]
[1720664418897,1.11353677,3112.9,3111.5,0.06425647]
[1720664419104,1.11353677,3112.8,3111.5,0.06425647]
[1720664419298,1.11353677,3112.7,3111.6,2.301]
[1720664419623,9.79771094,3113.6,3111.8,2.301]
[1720664419624,7.44,3113.6,3111.8,2.301]
[1720664419790,0.33526262,3113.4,3111.9,0.0642483]
[1720664419993,0.33526262,3113.4,3111.8,5.3652484]